bitfinex-derivatives/quotes_SOLF0:USTF0_20220101
["timestamp","ask_amount","ask_price","bid_price","bid_amount"]
[1641006262082,27.66479,172.53,172.46,4.11671586]
[1641006262380,32.90319717,172.54,172.51,4.0]
[1641006262580,32.90319717,172.54,172.51,9.299]
[1641006263384,38.69526204,172.58,172.51,9.299]
[1641006263584,32.90319717,172.58,172.51,9.299]
[1641006263985,27.66479,172.56,172.51,9.299]
[1641006264383,27.66479,172.56,172.51,13.41439138]
[1641006265290,27.66479,172.56,172.51,9.299]
[1641006266086,27.66479,172.56,172.52,5.32907383]
[1641006266590,27.66479,172.56,172.51,9.299]
[1641006267792,27.66479,172.56,172.51,2.71452072]
[1641006267990,27.66479,172.56,172.5,29.6017]
[1641006268389,33.06379,172.56,172.5,29.6017]
[1641006269090,33.06379,172.56,172.45,4.07330126]
[1641006269292,33.06379,172.56,172.46,29.3287]
[1641006269891,27.66479,172.56,172.46,29.3287]
[1641006271495,27.66479,172.56,172.48,4.07330126]
[1641006271696,43.38691155,172.55,172.48,4.07330126]
[1641006272497,10.48371438,172.55,172.48,4.07330126]
[1641006273399,10.48371438,172.55,172.49,7.0]
[1641006273599,10.48371438,172.55,172.49,4.702]
[1641006274301,60.56798717,172.56,172.52,4.07330126]
[1641006274501,27.66479,172.56,172.52,4.07330126]
[1641006275200,10.48161441,172.55,172.5,34.41120126]
[1641006276105,10.48161441,172.55,172.5,4.07330126]
[1641006276504,10.48161441,172.55,172.48,4.07330126]
[1641006278405,12.34871255,172.52,172.48,4.07330126]
[1641006279004,12.34871255,172.51,172.47,5.28732694]
[1641006284109,16.53671255,172.51,172.47,5.28732694]
[1641006284912,4.188,172.51,172.48,4.07330126]
[1641006285311,12.34871255,172.52,172.48,4.07330126]
[1641006285710,12.34871255,172.51,172.47,5.28732694]
[1641006287114,12.34871255,172.53,172.49,4.07330126]
[1641006290914,12.34871255,172.55,172.47,4.07330126]
[1641006291514,12.34871255,172.55,172.47,5.28310296]
[1641006294117,12.34871255,172.55,172.47,4.07330126]
[1641006294318,12.34871255,172.54,172.46,30.181]
[1641006296920,12.34871255,172.52,172.48,4.07330126]
[1641006302831,40.01350255,172.53,172.49,4.07330126]
[1641006305337,40.01350255,172.53,172.49,5.28733401]
[1641006307340,40.01350255,172.53,172.49,4.07330126]
[1641006309239,12.34871255,172.51,172.48,5.28733401]
[1641006309839,12.34871255,172.51,172.48,4.07330126]
[1641006312741,12.34871255,172.52,172.48,4.07330126]
[1641006312940,12.34871255,172.52,172.48,8.24830126]
[1641006316944,12.34871255,172.53,172.49,5.28734819]
[1641006317745,12.34871255,172.53,172.49,4.07330126]
[1641006317945,15.34871255,172.53,172.49,4.07330126]
[1641006318145,3.0,172.5,172.49,4.07330126]
[1641006318347,9.66,172.5,172.49,1.26e-06]
[1641006319350,9.66,172.5,172.47,1.21404693]
[1641006319550,9.66,172.5,172.43,1.21404693]
[1641006319551,3.0,172.49,172.43,1.21404693]
[1641006319753,27.66479,172.48,172.43,1.21404693]
[1641006320351,40.0156471,172.48,172.43,1.21404693]
[1641006321655,43.0156471,172.48,172.43,1.21404693]
[1641006323155,12.3508571,172.47,172.41,1.21404693]
[1641006324659,12.3508571,172.46,172.41,1.21404693]
[1641006326660,12.3508571,172.46,172.41,4.21404693]
[1641006326862,12.3508571,172.46,172.43,3.0]
[1641006327160,12.3508571,172.46,172.43,9.412]
[1641006327360,7.6383571,172.46,172.43,6.412]
[1641006327764,7.6383571,172.51,172.45,27.66479]
[1641006328466,10.48421192,172.53,172.46,1.21404693]
[1641006329368,10.48421192,172.53,172.45,27.66479]
[1641006329967,10.48421192,172.53,172.46,1.21403842]
[1641006330569,10.48421192,172.53,172.45,27.66479]
[1641006331368,10.48421192,172.53,172.46,1.21403841]
[1641006331768,10.48421192,172.53,172.45,27.66479]
[1641006332473,10.48421192,172.53,172.46,1.21403772]
[1641006332972,10.48421192,172.53,172.45,27.66479]
[1641006333672,10.48421192,172.53,172.46,1.21404732]
[1641006334272,10.48421192,172.53,172.45,27.66479]
[1641006335373,10.48421192,172.53,172.46,1.21404476]
[1641006335872,10.48421192,172.53,172.45,27.66479]
[1641006336473,10.48421192,172.53,172.46,1.21405192]
[1641006337175,10.48421192,172.53,172.45,27.66479]
[1641006337375,15.61521192,172.53,172.44,32.4963]
[1641006337977,24.40895468,172.53,172.44,32.4963]
[1641006338176,24.40895468,172.53,172.45,1.2140438]
[1641006338380,3.0,172.52,172.45,1.2140438]
[1641006338779,27.66479,172.48,172.44,32.4963]
[1641006338979,27.66479,172.48,172.42,8.7]
[1641006339381,27.66479,172.48,172.41,30.8087]
[1641006339581,27.66479,172.48,172.43,1.21399876]
[1641006339784,22.69827044,172.48,172.43,1.21399876]
[1641006340081,22.69827044,172.48,172.41,30.8087]
[1641006347395,3.0,172.47,172.41,30.8087]
[1641006347896,3.0,172.46,172.41,30.8087]
[1641006348098,3.0,172.47,172.41,30.8087]
[1641006348495,13.48958255,172.47,172.41,30.8087]
[1641006348897,27.66479,172.44,172.41,30.8087]
[1641006349095,27.66479,172.44,172.36,27.66479]
[1641006349297,27.66479,172.44,172.36,59.70229]
[1641006349696,27.66479,172.44,172.37,5.98143754]
[1641006352098,27.66479,172.44,172.37,15.06243754]
[1641006352698,22.69827044,172.48,172.37,15.06243754]
[1641006353399,33.18754338,172.48,172.37,15.06243754]
[1641006355903,33.18754338,172.48,172.38,1.21362317]
[1641006356803,33.18754338,172.48,172.39,27.66479]
[1641006357810,33.18754338,172.48,172.4,1.21362317]
[1641006358007,12.35281943,172.47,172.4,32.67932317]
[1641006358508,12.35281943,172.47,172.41,1.21362317]
[1641006361808,12.35281943,172.46,172.41,1.21362317]
[1641006364914,12.35281943,172.46,172.4,31.4657]
[1641006365114,35.05108987,172.48,172.4,31.4657]
[1641006366317,12.35281943,172.47,172.4,31.4657]
[1641006367718,12.35281943,172.47,172.4,40.2257]
[1641006369322,35.05108987,172.48,172.41,1.21049883]
[1641006371933,35.05108987,172.48,172.41,6.52849883]
[1641006372731,12.35281943,172.47,172.42,1.21049883]
[1641006376432,12.35281943,172.49,172.42,1.21049883]
[1641006377233,12.35281943,172.5,172.42,13.56331826]
[1641006377432,12.35281943,172.5,172.43,27.66479]
[1641006378037,12.35281943,172.5,172.44,1.21049883]
[1641006378639,12.35281943,172.5,172.46,4.11655034]
[1641006378841,12.35281943,172.5,172.46,9.37455034]
[1641006384548,12.35281943,172.51,172.47,5.33027461]
[1641006385852,40.01760943,172.52,172.48,4.11655034]
[1641006388355,27.66479,172.52,172.46,5.258]
[1641006388657,27.66479,172.52,172.45,8.56]
[1641006393257,31.0912,172.53,172.45,8.56]
[1641006393457,31.0912,172.53,172.45,14.968]
[1641006394058,4.09332461,172.51,172.45,14.968]
[1641006394258,4.09332461,172.51,172.46,27.66479]
[1641006394671,4.09332461,172.51,172.47,7.0]
[1641006394860,4.09332461,172.51,172.47,4.0]
[1641006395059,4.09332461,172.51,172.47,7.0]
[1641006395260,12.35281943,172.51,172.47,12.33028965]
[1641006395659,12.35281943,172.51,172.47,9.33028965]
[1641006396061,12.35281943,172.51,172.5,4.11655034]
[1641006396263,12.35281943,172.54,172.5,4.11655034]
[1641006398066,12.35281943,172.55,172.51,4.11655034]
[1641006400674,10.48468828,172.56,172.48,43.61911943]
[1641006400870,10.48468828,172.56,172.49,1.21381536]
[1641006401574,12.34693271,172.55,172.51,4.11564424]
[1641006402174,12.34693271,172.55,172.49,1.21381482]
[1641006402376,40.01172271,172.55,172.49,1.21381482]
[1641006403474,40.01172271,172.55,172.48,31.2663]
[1641006403776,40.01172271,172.55,172.51,4.11557307]
[1641006403974,31.1888,172.57,172.49,1.21382035]
[1641006404474,3.0,172.55,172.49,1.21382035]
[1641006404674,27.66479,172.55,172.48,31.2663]
[1641006404875,40.0115579,172.55,172.51,4.1155893]
[1641006405374,12.34813392,172.53,172.49,5.32981928]
[1641006406174,27.66479,172.55,172.48,31.2663]
[1641006406374,12.34758715,172.54,172.5,4.11586238]
[1641006407175,12.34758715,172.54,172.48,31.2663]
[1641006407377,12.34758715,172.53,172.49,5.32965138]
[1641006407976,12.34758715,172.53,172.48,31.2663]
[1641006408578,16.71758715,172.53,172.45,20.91281943]
[1641006408779,48.58118715,172.53,172.45,51.07011943]
[1641006408983,16.71758715,172.53,172.45,51.07011943]
[1641006409179,12.34758715,172.52,172.48,4.11601241]
[1641006409578,4.37,172.53,172.45,38.7173]
[1641006409781,12.34886598,172.51,172.47,4.11628866]
[1641006410483,4.37,172.53,172.45,30.1573]
[1641006410679,27.66479,172.51,172.45,30.1573]
[1641006411385,40.01414857,172.51,172.47,4.11645286]
[1641006411982,40.01414857,172.51,172.45,30.1573]
[1641006412184,40.01414857,172.51,172.46,4.11408719]
[1641006412781,40.01414857,172.51,172.46,1.21303725]
[1641006413681,40.01414857,172.51,172.46,4.11409924]
[1641006414281,40.01414857,172.51,172.48,4.11401911]
[1641006414983,27.66479,172.51,172.47,5.609]
[1641006415783,27.66479,172.51,172.48,5.32699137]
[1641006416585,27.66479,172.51,172.47,5.609]
[1641006417186,12.34204969,172.53,172.48,5.32697139]
[1641006417785,12.34204969,172.53,172.47,5.609]
[1641006417984,12.34204969,172.53,172.49,4.11371029]
[1641006418685,12.34204969,172.53,172.45,42.51011943]
[1641006418887,12.34204969,172.53,172.48,1.21376742]
[1641006419786,12.34204969,172.53,172.45,42.51011943]
[1641006419987,12.34204969,172.53,172.49,4.11611924]
[1641006420588,12.34204969,172.53,172.47,5.729]
[1641006421189,12.34204969,172.53,172.49,4.1161249]
[1641006421791,12.34204969,172.53,172.45,42.51011943]
[1641006421989,12.34204969,172.53,172.46,1.2137663]
[1641006422390,12.34204969,172.53,172.45,42.51011943]
[1641006422391,12.34204969,172.53,172.47,4.11612669]
[1641006422589,10.47749889,172.54,172.47,4.11612669]
[1641006422590,12.34204969,172.51,172.47,4.11612669]
[1641006423090,10.47749889,172.54,172.45,30.1573]
[1641006423293,10.47749889,172.54,172.46,1.21376732]
[1641006423792,12.34833461,172.51,172.47,4.11611154]
[1641006423992,12.34833461,172.51,172.47,9.73311154]
[1641006424593,10.47749889,172.54,172.47,9.73311154]
[1641006424594,10.47749889,172.54,172.47,5.617]
[1641006425594,12.34840928,172.51,172.47,9.73313643]
[1641006426294,12.34750585,172.53,172.49,4.11583528]
[1641006427195,12.34750585,172.53,172.47,5.617]
[1641006427795,12.34750585,172.53,172.49,4.11574371]
[1641006428495,10.47749889,172.54,172.49,4.11574371]
[1641006428699,10.47749889,172.54,172.47,5.617]
[1641006428996,10.47749889,172.54,172.45,54.16568008]
[1641006429197,12.34723542,172.53,172.49,4.11574514]
[1641006429397,12.34723542,172.53,172.49,10.68474514]
[1641006429798,70.47536845,172.55,172.51,4.11565948]
[1641006430699,70.47536845,172.55,172.5,1.21381316]
[1641006431299,70.47536845,172.55,172.51,4.11565366]
[1641006432000,70.47536845,172.55,172.5,1.21381499]
[1641006432501,70.47536845,172.55,172.51,4.11566118]
[1641006433302,70.47536845,172.55,172.5,1.21381298]
[1641006433802,70.47536845,172.55,172.51,4.11565359]
[1641006434303,12.34697845,172.55,172.51,4.11565359]
[1641006434502,12.34697845,172.55,172.5,1.21381367]
[1641006435103,12.34697845,172.57,172.53,4.11504208]
[1641006435302,12.34697845,172.57,172.53,8.80404208]
[1641006435902,13.47980722,172.6,172.54,5.32884503]
[1641006436303,3.0,172.59,172.54,5.32884503]
[1641006436804,12.34459425,172.58,172.53,4.689]
[1641006437303,40.00938425,172.58,172.51,27.66479]
[1641006437510,12.34459425,172.56,172.52,4.11496129]
[1641006438206,12.34459425,172.56,172.51,27.66479]
[1641006438407,27.66479,172.58,172.53,4.114967]
[1641006438408,12.344901,172.57,172.53,4.114967]
[1641006439013,12.344901,172.56,172.51,27.66479]
[1641006439611,10.47957805,172.57,172.53,4.11498389]
[1641006439912,10.47957805,172.57,172.53,10.11898389]
[1641006440210,10.47957805,172.57,172.53,6.004]
[1641006440410,12.3449453,172.56,172.53,6.004]
[1641006440913,12.34486896,172.57,172.53,10.11895632]
[1641006441613,12.34486896,172.57,172.53,6.004]
[1641006442315,12.34486896,172.57,172.53,10.11897211]
[1641006443113,12.34486896,172.57,172.53,6.004]
[1641006443812,12.34486896,172.57,172.53,10.11898233]
[1641006444413,12.34486896,172.57,172.53,6.004]
[1641006444812,12.34486896,172.57,172.51,36.54479]
[1641006445313,12.34486896,172.57,172.53,4.11489]
[1641006445513,12.34486896,172.57,172.53,8.27789]
[1641006445714,12.34486896,172.57,172.54,27.66479]
[1641006445916,12.34486896,172.58,172.54,32.99343604]
[1641006446714,12.34486896,172.58,172.54,27.66479]
[1641006447515,12.34486896,172.58,172.54,31.77955324]
[1641006447916,12.34486896,172.58,172.54,27.66479]
[1641006448717,12.34486896,172.57,172.54,27.66479]
[1641006449515,12.34486896,172.58,172.54,31.7795422]
[1641006450115,12.34486896,172.57,172.54,27.66479]
[1641006450319,12.34486896,172.57,172.51,36.54479]
[1641006450718,10.47957805,172.6,172.53,4.11477843]
[1641006451324,13.47957805,172.6,172.53,4.11477843]
[1641006451520,13.47957805,172.6,172.51,27.66479]
[1641006451721,12.34488605,172.57,172.49,41.96328008]
[1641006452021,44.54478605,172.57,172.49,41.96328008]
[1641006452222,44.54478605,172.57,172.53,4.11506121]
[1641006452922,32.1999,172.57,172.5,1.21387298]
[1641006453623,44.54514066,172.57,172.53,4.11508022]
[1641006454224,32.1999,172.57,172.5,28.87866298]
[1641006454426,32.1999,172.57,172.51,1.21387298]
[1641006455023,32.1999,172.57,172.5,27.66479]
[1641006455223,32.1999,172.57,172.54,4.11496823]
[1641006455426,12.3449047,172.58,172.54,4.11496823]
[1641006456528,12.3449047,172.57,172.51,1.21388032]
[1641006456928,10.47961191,172.59,172.53,4.11502173]
[1641006457527,12.34507358,172.57,172.51,1.21387665]
[1641006458128,10.47961191,172.59,172.53,4.11503194]
[1641006458329,10.47961191,172.59,172.53,9.55603194]
[1641006458828,12.34510896,172.57,172.53,5.441]
[1641006459529,17.45910896,172.57,172.5,27.66479]
[1641006459732,5.114,172.57,172.53,4.11504739]
[1641006460231,17.4591733,172.57,172.51,1.21387333]
[1641006461032,17.4591733,172.57,172.5,27.66479]
[1641006461235,12.3451733,172.55,172.51,4.11541015]
[1641006461833,5.114,172.57,172.51,1.21382906]
[1641006462532,12.34653937,172.55,172.51,4.11551312]
[1641006463033,12.34653937,172.55,172.51,1.2138261]
[1641006463836,12.34653937,172.55,172.51,4.11553319]
[1641006464536,12.34653937,172.55,172.51,1.21382583]
[1641006465037,12.34653937,172.55,172.51,4.11553078]
[1641006465936,12.34653937,172.55,172.51,1.21382552]
[1641006466436,12.34653937,172.55,172.5,8.76]
[1641006466636,12.34653937,172.55,172.51,4.11555568]
[1641006467237,12.34653937,172.55,172.5,8.76]
[1641006467439,12.34653937,172.55,172.51,1.21382326]
[1641006468039,10.47961191,172.57,172.51,4.11556046]
[1641006468743,12.34669819,172.55,172.51,1.2138225]
[1641006469243,10.47961191,172.57,172.5,8.76]
[1641006469443,10.47961191,172.57,172.51,4.11557173]
[1641006469945,12.34671719,172.55,172.51,1.21382187]
[1641006470947,10.47961191,172.57,172.51,4.11557153]
[1641006471148,15.19661191,172.57,172.51,4.11557153]
[1641006471349,15.19661191,172.57,172.5,8.76]
[1641006471548,12.3467385,172.55,172.51,1.21382116]
[1641006472048,15.19661191,172.57,172.5,8.76]
[1641006472251,15.19661191,172.57,172.51,4.11558047]
[1641006472951,15.19661191,172.57,172.5,8.76]
[1641006473151,12.34673028,172.55,172.51,1.21382143]
[1641006473851,10.47961191,172.57,172.5,8.76]
[1641006474050,10.47961191,172.57,172.51,4.11558265]
[1641006474351,4.10626351,172.53,172.5,12.86626351]
[1641006475150,6.253,172.53,172.5,8.76]
[1641006475351,4.10622289,172.52,172.49,33.72112289]
[1641006475551,4.10622289,172.52,172.49,4.10622289]
[1641006476051,6.253,172.53,172.45,12.34838008]
[1641006476252,3.0,172.52,172.48,1.21107289]
[1641006477050,12.31879054,172.51,172.44,4.10732041]
[1641006477250,42.98399054,172.51,172.44,4.10732041]
[1641006477851,12.31879054,172.51,172.41,57.35859]
[1641006478051,12.31879054,172.51,172.43,4.10745304]
[1641006478052,4.10745304,172.47,172.43,4.10745304]
[1641006478452,5.304e-05,172.47,172.43,8.10745304]
[1641006478656,12.31879054,172.51,172.44,3.0]
[1641006478853,12.31879054,172.51,172.44,5.595]
[1641006479053,12.31879054,172.52,172.44,8.595]
[1641006479255,12.31879054,172.52,172.45,31.4693]
[1641006479859,12.31879054,172.52,172.45,32.68025387]
[1641006480060,32.3915,172.54,172.47,27.66479]
[1641006480658,32.3915,172.54,172.48,1.21095387]
[1641006480859,32.3915,172.54,172.48,5.82695387]
[1641006481058,39.98358054,172.55,172.48,5.82695387]
[1641006481259,39.98358054,172.55,172.48,4.616]
[1641006481959,39.98358054,172.55,172.49,1.21130824]
[1641006482559,39.98358054,172.55,172.48,4.616]
[1641006483359,39.98358054,172.55,172.49,1.21406573]
[1641006483961,12.34819776,172.53,172.48,4.616]
[1641006484660,27.66479,172.55,172.48,4.616]
[1641006484861,12.34792039,172.54,172.49,1.21403848]
[1641006485361,12.34792039,172.54,172.48,4.616]
[1641006485860,12.34792039,172.54,172.49,1.2140409]
[1641006486964,12.34792039,172.54,172.48,4.616]
[1641006487163,12.34792039,172.54,172.47,27.66479]
[1641006487765,12.34792039,172.54,172.48,1.21404289]
[1641006487963,12.34792039,172.54,172.48,5.60204289]
[1641006488165,12.34792039,172.54,172.49,1.21404255]
[1641006488867,12.34792039,172.54,172.48,4.388]
[1641006489365,12.34792039,172.54,172.49,1.21404353]
[1641006490066,12.34792039,172.54,172.48,4.388]
[1641006490268,12.34792039,172.52,172.48,4.388]
[1641006490868,10.48231412,172.54,172.48,4.388]
[1641006491066,10.48231412,172.54,172.47,25.46730618]
[1641006491269,12.3481731,172.52,172.47,25.46730618]
[1641006491971,12.3481731,172.52,172.48,1.2144402]
[1641006492269,12.3481731,172.52,172.48,6.4614402]
[1641006493172,12.3481731,172.52,172.48,5.247]
[1641006493775,12.3481731,172.5,172.48,5.247]
[1641006494474,12.3481731,172.51,172.48,5.247]
[1641006496381,3.0,172.5,172.48,5.247]
[1641006497682,3.0,172.5,172.42,30.6091]
[1641006497883,33.9655,172.5,172.42,30.6091]
[1641006498283,30.9655,172.5,172.42,30.6091]
[1641006503588,30.9655,172.5,172.42,36.1651]
[1641006504589,12.3481731,172.48,172.43,1.2143436]
[1641006505891,12.3481731,172.51,172.43,19.54482803]
[1641006506292,12.3481731,172.51,172.43,47.20961803]
[1641006506493,12.3481731,172.5,172.43,47.20961803]
[1641006506695,3.0,172.48,172.43,47.20961803]
[1641006506893,3.0,172.48,172.43,19.54482803]
[1641006507094,12.3481731,172.49,172.44,1.2143436]
[1641006507896,12.3481731,172.49,172.42,30.6091]
[1641006508096,12.3481731,172.5,172.42,30.6091]
[1641006509098,40.0129631,172.51,172.43,1.21096699]
[1641006510495,40.0129631,172.51,172.43,28.87575699]
[1641006510697,57.75089,172.51,172.43,28.87575699]
[1641006510898,60.75089,172.51,172.43,28.87575699]
[1641006511096,57.75089,172.51,172.43,28.87575699]
[1641006511297,73.0990631,172.51,172.42,30.6091]
[1641006511797,12.3481731,172.5,172.43,1.21095495]
[1641006512597,60.75089,172.51,172.43,1.21095495]
[1641006513798,12.3481731,172.5,172.42,30.6091]
[1641006514298,15.3481731,172.5,172.42,30.6091]
[1641006514600,27.66479,172.48,172.42,30.6091]
[1641006515901,12.3481731,172.5,172.42,30.6091]
[1641006516300,12.3481731,172.5,172.43,1.21093394]
[1641006517001,70.0990631,172.51,172.43,1.21093394]
[1641006519601,70.0990631,172.51,172.42,30.6091]
[1641006520004,73.0990631,172.51,172.42,30.6091]
[1641006520203,70.0990631,172.51,172.42,30.6091]
[1641006520507,12.3481731,172.5,172.42,30.6091]
[1641006521107,12.3481731,172.49,172.42,30.6091]
[1641006524815,27.66479,172.48,172.42,30.6091]
[1641006526113,12.3481731,172.47,172.43,1.21433786]
[1641006527315,27.66479,172.48,172.43,1.21433786]
[1641006534331,27.66479,172.48,172.43,19.54397004]
[1641006535131,27.66479,172.48,172.43,1.21433786]
[1641006539134,27.66479,172.48,172.46,4.1164751]
[1641006541933,27.66479,172.48,172.45,5.33081296]
[1641006542133,12.3481731,172.49,172.45,5.33081296]
[1641006542535,70.0990631,172.51,172.47,4.1164751]
[1641006544638,57.75089,172.51,172.45,5.33081296]
[1641006549045,57.75089,172.51,172.46,4.1164751]
[1641006550448,57.75089,172.51,172.45,5.33081296]
[1641006550649,70.0990631,172.51,172.45,5.33081296]
[1641006551448,70.0990631,172.51,172.44,5.903]
[1641006551449,70.0990631,172.51,172.44,10.0194751]
[1641006552049,70.0990631,172.51,172.44,5.903]
[1641006552251,70.0990631,172.51,172.43,27.66479]
[1641006552649,70.0990631,172.51,172.45,4.10798573]
[1641006553049,3.0,172.5,172.45,4.10798573]
[1641006553250,27.66479,172.47,172.42,30.6091]
[1641006553451,27.66479,172.47,172.44,4.10800886]
[1641006554151,27.66479,172.47,172.42,30.6091]
[1641006554351,27.66479,172.47,172.42,34.71774209]
[1641006555050,27.66479,172.47,172.43,4.10835376]
[1641006555252,4.10835376,172.46,172.43,10.40921206]
[1641006555952,27.66479,172.47,172.43,5.089]
[1641006556654,31.77301508,172.47,172.44,4.10822508]
[1641006556852,31.77301508,172.47,172.44,5.32009625]
[1641006557553,27.66479,172.47,172.43,5.089]
[1641006557754,4.10834798,172.46,172.43,9.19734798]
[1641006558351,27.66479,172.47,172.43,5.089]
[1641006559053,4.10841109,172.46,172.43,9.19741109]
[1641006559653,27.66479,172.47,172.43,9.19741109]
[1641006559654,27.66479,172.47,172.43,5.089]
[1641006560254,4.10841358,172.46,172.43,9.19741358]
[1641006560860,27.66479,172.47,172.43,5.089]
[1641006561060,27.66479,172.47,172.42,30.6091]
[1641006562361,27.66479,172.47,172.44,4.11689725]
[1641006562564,27.66479,172.47,172.44,8.29989725]
[1641006562963,27.66479,172.47,172.44,4.183]
[1641006563763,27.66479,172.47,172.44,8.29984753]
[1641006564262,27.66479,172.47,172.44,4.183]
[1641006565265,15.35053448,172.5,172.46,4.11684483]
[1641006565463,12.35053448,172.5,172.46,4.11684483]
[1641006565866,12.35053448,172.5,172.44,4.183]
[1641006566565,12.35053448,172.5,172.46,4.11670814]
[1641006567265,12.35053448,172.5,172.44,4.183]
[1641006567968,70.10142448,172.51,172.45,5.32494994]
[1641006568168,40.01532448,172.51,172.45,11.75994994]
[1641006568368,12.35053448,172.51,172.45,11.75994994]
[1641006568570,1.03463448,172.51,172.46,7.0]
[1641006568769,32.90319717,172.55,172.49,7.0]
[1641006568969,12.33320566,172.55,172.49,15.68806855]
[1641006569769,60.56798717,172.59,172.5,27.66479]
[1641006569970,60.56798717,172.59,172.5,30.66479]
[1641006570169,31.5461,172.6,172.54,4.10999676]
[1641006570369,27.66479,172.62,172.54,8.85299676]
[1641006571072,27.66479,172.62,172.54,4.743]
[1641006571271,27.66479,172.62,172.56,4.10952686]
[1641006571871,27.66479,172.62,172.54,4.743]
[1641006572472,10.46347475,172.61,172.54,8.85261255]
[1641006573274,10.46347475,172.61,172.54,4.743]
[1641006573575,10.46347475,172.61,172.52,29.8723]
[1641006573976,10.46347475,172.61,172.54,4.10968275]
[1641006574474,13.46347475,172.61,172.52,29.8723]
[1641006574677,10.46347475,172.61,172.55,4.11432671]
[1641006574875,10.46347475,172.61,172.55,10.72432671]
[1641006575276,43.36667192,172.61,172.55,6.61]
[1641006575975,10.46347475,172.61,172.55,6.61]
[1641006576175,10.46347475,172.61,172.55,0.02673381]
[1641006576377,10.46347475,172.61,172.52,29.8723]
[1641006576776,10.46347475,172.61,172.54,4.1145922]
[1641006576777,43.36667192,172.61,172.54,4.1145922]
[1641006577477,43.36667192,172.61,172.53,5.33035852]
[1641006577978,10.46347475,172.61,172.54,4.1145922]
[1641006580284,10.46347475,172.61,172.55,4.1145922]
[1641006581682,13.46347475,172.61,172.55,4.1145922]
[1641006581982,10.46347475,172.61,172.55,4.1145922]
[1641006582185,10.46347475,172.61,172.54,4.1145922]
[1641006583585,10.46347475,172.61,172.55,4.1145922]
[1641006584886,10.46347475,172.61,172.54,4.1145922]
[1641006587689,43.36667192,172.61,172.53,5.33035852]
[1641006590293,32.90319717,172.6,172.52,42.7868922]
[1641006591197,43.36667192,172.61,172.53,5.3303494]
[1641006591799,32.90319717,172.61,172.53,4.1145922]
[1641006592000,30.66479,172.62,172.52,38.6723]
[1641006592401,3.0,172.61,172.52,38.6723]
[1641006593203,30.66479,172.62,172.52,38.6723]
[1641006593503,4.08026771,172.58,172.52,38.6723]
[1641006598109,32.1246,172.6,172.52,38.6723]
[1641006598311,10.47484279,172.59,172.52,42.7868922]
[1641006598911,12.3451117,172.56,172.52,42.7868922]
[1641006599112,12.3451117,172.56,172.52,12.9145922]
[1641006603920,9.8651117,172.56,172.52,12.9145922]
[1641006604116,9.8651117,172.56,172.52,19.2875922]
[1641006604617,9.8651117,172.56,172.54,27.66479]
[1641006605017,10.47484279,172.59,172.55,4.1145922]
[1641006605218,10.47484279,172.61,172.55,4.1145922]
[1641006605918,10.47484279,172.61,172.55,5.33054592]
[1641006606519,10.47484279,172.61,172.54,31.7793822]
[1641006607521,32.90319717,172.6,172.54,27.66479]
[1641006608221,10.47484279,172.61,172.54,31.7793822]
[1641006609924,10.47484279,172.61,172.55,5.33037292]
[1641006610823,10.47484279,172.61,172.54,27.66479]
[1641006610824,10.47484279,172.61,172.54,31.7793822]
[1641006617333,10.47484279,172.61,172.55,5.33052514]
[1641006618034,43.37803996,172.61,172.54,31.7793822]
[1641006618734,10.47484279,172.61,172.54,31.7793822]
[1641006619336,43.37803996,172.61,172.54,31.7793822]
[1641006620539,10.47484279,172.61,172.54,31.7793822]
[1641006625447,10.47484279,172.61,172.54,36.6593822]
[1641006628851,10.47484279,172.61,172.55,3.0]
[1641006629051,10.47484279,172.61,172.54,36.6593822]
[1641006629453,10.47484279,172.61,172.55,3.0]
[1641006629651,32.90319717,172.64,172.57,4.1145922]
[1641006630454,46.37803996,172.65,172.58,4.1145922]
[1641006630652,46.37803996,172.65,172.58,10.8645922]
[1641006632255,43.37803996,172.65,172.58,13.8645922]
[1641006632456,43.37803996,172.65,172.6,7.0]
[1641006632657,43.37803996,172.65,172.64,27.66479]
[1641006632856,10.47484279,172.65,172.64,34.20579]
[1641006633057,3.47484279,172.65,172.64,34.20579]
[1641006633658,32.90319717,172.67,172.64,34.20579]
[1641006633860,32.90319717,172.72,172.64,35.42184282]
[1641006634663,32.90319717,172.72,172.65,5.32807087]
[1641006634860,12.33605416,172.69,172.65,5.32807087]
[1641006636761,12.33605416,172.69,172.64,27.66479]
[1641006637362,12.33605416,172.68,172.64,31.77710969]
[1641006638064,4.926,172.7,172.64,27.66479]
[1641006638763,12.33726287,172.68,172.64,31.77721096]
[1641006639463,12.33726287,172.68,172.64,27.66479]